bitfinex/quotes_ETHUSD_20240722
["timestamp","ask_amount","ask_price","bid_price","bid_amount"]
[1721691508477,3.30303266,3451.3,3450.7,2.3252]
[1721691508646,0.30303266,3451.3,3451.0,2.89769]
[1721691509033,2.90880692,3451.8,3451.0,2.89769]
[1721691509267,2.90880692,3451.8,3451.1,2.89756]
[1721691509268,0.30297791,3451.8,3451.1,2.89756]
[1721691509475,0.30297791,3451.8,3451.2,2.89753]
[1721691509684,0.30297791,3451.8,3451.3,2.4614]
[1721691510475,1.7,3451.7,3451.3,2.4614]
[1721691510788,2.20029779,3451.7,3451.3,2.4614]
[1721691510958,4.7,3451.7,3451.3,2.4614]
[1721691511281,1.7,3451.7,3451.3,2.4614]
[1721691512873,1.7,3451.7,3451.0,5.31161]
[1721691513487,1.7,3451.7,3450.7,7.4]
[1721691513654,2.25237791,3451.8,3450.7,7.4]
[1721691513655,1.7,3451.3,3450.7,7.4]
[1721691513857,1.7,3451.3,3450.7,10.29791]
[1721691515281,1.7,3451.3,3450.7,7.4]
[1721691515679,1.7,3451.3,3450.7,10.29796]
[1721691515877,1.7,3451.3,3450.8,2.89786]
[1721691516600,1.7,3451.3,3450.7,8.96099]
[1721691516799,1.7,3451.3,3450.7,7.4]
[1721691519512,1.7,3451.3,3450.6,2.4139]
[1721691520301,1.7,3450.9,3450.3,7.4]
[1721691520513,1.7,3450.9,3450.2,5.32583]
[1721691520659,1.7,3450.9,3450.3,2.89829]
[1721691521090,1.7,3450.9,3450.2,2.4275]
[1721691521288,1.709246,3450.9,3450.2,2.4275]
[1721691521490,1.709246,3450.9,3450.2,5.32583]
[1721691521897,1.709246,3450.9,3450.2,8.22415]
[1721691522198,1.709246,3450.9,3450.2,8.22413]
[1721691522693,1.709246,3450.9,3450.2,5.32581]
[1721691522862,1.709246,3450.9,3450.3,2.89829]
[1721691523261,1.709246,3450.9,3450.3,3.59300556]
[1721691524362,1.709246,3450.9,3450.3,0.69471556]
[1721691524599,1.709246,3450.9,3450.2,5.32581]
[1721691524794,1.709246,3450.9,3450.2,8.22414]
[1721691525000,1.709246,3450.9,3450.3,2.89827]
[1721691526225,1.709246,3450.9,3450.2,2.4275]
[1721691526703,1.709246,3450.9,3450.3,2.89828]
[1721691526892,1.709246,3450.9,3450.2,2.4275]
[1721691527479,1.709246,3450.9,3450.2,5.32586]
[1721691529183,1.709246,3450.9,3450.2,5.61947314]
[1721691529385,1.709246,3450.9,3450.2,5.32586]
[1721691530016,1.709246,3450.9,3450.2,2.4275]
[1721691530229,1.7,3450.5,3449.9,7.4]
[1721691530701,1.20880692,3450.4,3449.9,7.4]
[1721691530897,1.7,3450.1,3449.9,7.4]
[1721691531117,1.7,3450.1,3449.5,7.4]
[1721691531322,1.709246,3450.1,3449.5,7.4]
[1721691531523,1.20880692,3450.0,3449.5,7.4]
[1721691531824,1.7,3449.7,3449.5,7.4]
[1721691532387,1.709246,3449.7,3449.5,7.4]
[1721691533424,2.91805292,3449.7,3449.5,7.4]
[1721691533601,1.709246,3449.7,3449.5,7.4]
[1721691534192,1.709246,3449.7,3449.1,5.1759]
[1721691534493,0.009246,3449.7,3449.2,0.50624153]
[1721691534694,0.009246,3449.7,3449.4,2.899]
[1721691534894,0.009246,3449.7,3449.6,5.25468]
[1721691538233,0.009246,3449.7,3449.6,8.15356]
[1721691538394,0.009246,3449.7,3449.6,11.05244]
[1721691538593,0.009246,3449.7,3449.6,12.997594]
[1721691539211,0.009246,3449.7,3449.6,15.515594]
[1721691539600,0.009246,3449.7,3449.6,18.515594]
[1721691548628,0.009246,3449.7,3449.6,13.098714]
[1721691548941,0.009246,3449.7,3449.6,12.548714]
[1721691549449,0.009246,3449.7,3449.6,9.548714]
[1721691549751,0.009246,3449.7,3449.6,2.89888]
[1721691550456,0.009246,3449.7,3449.3,2.89911]
[1721691550749,1.21805292,3449.7,3449.4,2.89902]
[1721691550907,1.21805292,3449.7,3449.5,2.89896]
[1721691551221,1.21805292,3449.7,3449.4,2.89902]
[1721691551222,0.009246,3449.7,3449.4,2.89902]
[1721691551753,0.009246,3449.7,3449.6,8.27946]
[1721691552111,0.009246,3449.7,3449.6,11.17834]
[1721691552616,0.009246,3449.7,3449.6,11.72834]
[1721691554064,0.009246,3449.7,3449.6,8.82946]
[1721691554213,0.009246,3449.7,3449.6,2.89888]
[1721691555356,0.009246,3449.7,3449.6,5.79776]
[1721691555557,0.009246,3449.7,3449.6,2.89888]
[1721691555715,0.009246,3449.7,3449.6,6.097648]
[1721691556356,0.009246,3449.7,3449.6,11.873228]
[1721691556568,0.009246,3449.7,3449.6,8.974348]
[1721691557638,0.009246,3449.7,3449.6,11.873228]
[1721691558650,0.009246,3449.7,3449.6,8.974348]
[1721691560442,0.009246,3449.7,3449.6,11.873228]
[1721691560644,0.009246,3449.7,3449.6,8.974348]
[1721691565218,0.009246,3449.7,3449.6,11.873228]
[1721691567459,0.009246,3449.7,3449.6,11.873228]
[1721691569955,0.009246,3449.7,3449.6,14.873228]
[1721691571326,0.009246,3449.7,3449.6,17.772108]
[1721691571626,0.009246,3449.7,3449.6,20.829108]
[1721691572061,0.009246,3449.7,3449.6,23.727988]
[1721691572374,0.009246,3449.7,3449.6,20.829108]
[1721691574031,6e-06,3449.7,3449.6,23.727988]
[1721691575503,6e-06,3449.7,3449.6,24.73627106]
[1721691575643,6e-06,3449.7,3449.6,26.24869947]
[1721691576532,1.20880692,3451.3,3449.6,26.24869947]
[1721691576533,1.20880692,3451.4,3451.3,2.89745]
[1721691576740,1.20880692,3451.4,3451.3,5.7949]
[1721691576943,1.5129122,3451.6,3451.4,2.89737]
[1721691577356,1.20915651,3451.5,3451.4,2.89737]
[1721691578364,1.5129122,3451.6,3451.5,2.89729]
[1721691578701,3.46058401,3451.7,3451.5,2.89729]
[1721691579116,3.46056654,3451.7,3451.4,2.89735]
[1721691579408,1.20895279,3451.5,3451.2,2.89746]
[1721691579906,1.20895279,3451.5,3451.4,2.89737]
[1721691580059,1.20895279,3451.5,3451.3,2.89744]
[1721691580520,1.20895279,3451.6,3451.4,2.89737]
[1721691582194,1.20895279,3451.6,3451.2,2.89746]
[1721691582489,1.20895279,3451.6,3451.4,2.8973]
[1721691582694,1.20895279,3451.6,3451.2,2.89746]
[1721691582867,1.20895279,3451.5,3451.3,2.89744]
[1721691583068,1.20895279,3451.6,3451.1,2.89755]
[1721691583273,1.20895279,3451.5,3451.1,2.89755]
[1721691583470,1.20895279,3451.6,3451.4,2.89736]
[1721691583675,1.20895279,3451.7,3451.4,2.89736]
[1721691584891,0.39525659,3451.9,3451.2,2.89749]
[1721691584892,1.20895279,3451.6,3451.2,2.89749]
[1721691585105,1.20895279,3451.6,3451.3,2.89745]
[1721691585505,1.20895279,3451.7,3451.3,2.89744]
[1721691585689,1.20895279,3451.7,3451.2,2.89749]
[1721691585869,1.20895279,3451.7,3451.3,2.89744]
[1721691586614,1.51035204,3451.8,3451.3,2.89744]
[1721691586615,1.20895279,3451.6,3451.3,2.89744]
[1721691586909,1.20895279,3451.7,3451.3,2.89744]
[1721691587424,1.20895279,3451.6,3451.3,2.89744]
[1721691587573,1.20895279,3451.7,3451.3,2.89744]
[1721691588508,1.20895279,3451.8,3451.3,2.89744]
[1721691588729,1.20895279,3451.7,3451.2,2.89749]
[1721691589073,1.20895279,3451.7,3451.1,2.89755]
[1721691589074,1.20895279,3451.7,3451.3,2.89745]
[1721691589618,1.20895279,3451.7,3450.9,2.89773]
[1721691589806,1.20895279,3451.7,3450.7,5.15972]
[1721691589807,1.20895279,3451.6,3450.7,5.15972]
[1721691589968,1.20895279,3451.6,3450.9,2.89773]
[1721691590173,1.20895279,3451.6,3451.0,2.8977]
[1721691591719,1.20895279,3451.6,3451.0,2.89765]
[1721691592072,1.20895279,3451.6,3451.1,2.89761]
[1721691592381,1.51044877,3451.8,3451.3,2.89744]
[1721691592382,1.20895279,3451.7,3451.3,2.89744]
[1721691592785,1.20895279,3451.7,3451.2,2.89748]
[1721691592982,1.20895279,3451.7,3451.2,5.79495]
[1721691593181,1.20895279,3451.7,3451.3,2.89745]
[1721691593411,1.20895279,3451.7,3451.2,2.89747]
[1721691593799,1.20895279,3451.6,3451.2,2.89747]
[1721691594177,1.20895279,3451.7,3451.2,2.89747]
[1721691596134,1.20895279,3451.7,3451.3,2.89745]
[1721691596672,1.20895279,3451.7,3451.4,2.89736]
[1721691596878,1.20895279,3451.7,3451.5,2.89728]
[1721691597374,1.7,3452.0,3451.3,2.89745]
[1721691597375,1.20895279,3451.8,3451.6,2.8972]
[1721691597976,1.20895279,3451.8,3451.5,2.89724]
[1721691599382,1.20895279,3451.9,3451.6,2.89719]
[1721691599627,1.20895279,3451.9,3451.7,2.8971]
[1721691599972,1.20895279,3451.9,3451.7,2.89705]
[1721691600177,1.20895279,3452.0,3451.8,2.89699]
[1721691600383,1.20895279,3452.1,3451.8,2.89699]
[1721691600611,1.20895279,3452.0,3451.8,2.89699]
[1721691601189,1.20895279,3452.1,3451.8,2.89699]
[1721691601612,1.20895279,3452.1,3451.9,2.89692]
[1721691603628,1.20895279,3452.1,3451.9,2.8969]
[1721691603933,1.20895279,3452.3,3452.1,5.79356]
[1721691604130,1.20895279,3452.3,3451.9,0.824777]
[1721691604131,1.20895279,3452.4,3452.3,2.89661]
[1721691604306,1.20895279,3452.5,3452.4,2.89653]
[1721691604497,1.51169596,3452.7,3452.4,2.89653]
[1721691604498,1.20895279,3452.6,3452.4,2.89653]
[1721691605430,1.20895279,3452.6,3452.5,2.89645]
[1721691605998,1.20895279,3452.6,3452.2,2.89665]
[1721691606197,1.20895279,3452.6,3452.4,2.89647]
[1721691606438,1.20895279,3452.6,3452.4,2.89646]
[1721691606640,1.20895279,3452.7,3452.4,2.89646]
[1721691607941,1.20895279,3452.8,3452.4,2.89646]
[1721691608439,1.20895279,3452.7,3452.4,2.89646]
[1721691608645,1.20895279,3452.8,3452.4,2.89646]
[1721691609023,1.20895279,3452.7,3452.1,2.89675]
[1721691609232,1.20895279,3452.8,3452.1,2.89675]
[1721691609555,1.20895279,3452.7,3451.9,2.89693]
[1721691609756,1.20895279,3452.6,3451.9,2.89693]
[1721691609943,1.20895279,3452.5,3451.9,2.89693]
[1721691610457,1.20895279,3452.5,3452.0,2.89685]
[1721691610656,1.20895279,3452.5,3451.9,5.7938]
[1721691610833,1.20895279,3452.5,3452.0,2.89686]
[1721691611029,1.20895279,3452.6,3452.0,2.89686]
[1721691611237,1.20895279,3452.6,3452.1,2.89678]
[1721691611434,1.7,3452.9,3452.1,2.89678]
[1721691611435,1.20895279,3452.5,3452.1,2.89678]
[1721691612123,1.20895279,3452.6,3452.1,2.89678]
[1721691612348,1.20895279,3452.5,3451.9,5.79379]
[1721691612535,1.20895279,3452.6,3452.0,2.89686]
[1721691612742,1.5116028,3452.7,3452.0,2.89686]
[1721691612743,1.20895279,3452.5,3452.0,2.89686]
[1721691614022,1.20895279,3452.5,3452.1,2.89674]
[1721691614333,1.20895279,3452.5,3452.3,2.89659]
[1721691614530,1.20895279,3452.6,3452.3,2.89659]
[1721691615621,1.20895279,3452.5,3452.3,2.89659]
[1721691616547,1.20895279,3452.5,3452.2,2.3827]
[1721691616756,1.20895279,3452.5,3452.2,5.27932]
[1721691617066,1.20895279,3452.6,3452.4,5.793]
[1721691617263,1.20895279,3452.6,3452.4,2.89647]
[1721691617433,1.20895279,3452.6,3452.5,2.89645]
[1721691618465,1.20895279,3452.7,3452.6,2.89636]
[1721691619438,1.20895279,3452.8,3452.7,2.89628]
[1721691619666,1.20895279,3452.8,3452.6,2.89636]
[1721691620058,1.20895279,3452.8,3452.6,2.89629]
[1721691620429,1.20895279,3452.8,3452.6,2.8963]
[1721691620741,1.20895279,3452.8,3452.6,5.7926]
[1721691621066,1.20895279,3452.8,3452.7,5.15928]
[1721691621432,1.20895279,3452.9,3452.8,2.8962]
[1721691621653,1.51352326,3453.0,3452.8,2.8962]
[1721691621938,1.21074097,3452.9,3452.8,2.8962]
[1721691622338,1.21074097,3452.9,3452.6,3.47556]
[1721691622339,1.51335167,3453.0,3452.6,3.47555]
[1721691622559,1.51335167,3453.0,3452.4,2.89648]
[1721691622560,1.21068182,3452.8,3452.4,5.30495]
[1721691622865,1.21068182,3452.8,3452.4,5.305]
[1721691623051,1.21068182,3452.8,3452.4,5.30495]
[1721691623448,1.21068182,3452.8,3452.0,5.30529]
[1721691623637,1.21068182,3452.6,3452.0,5.30529]
[1721691623832,1.21068182,3452.5,3452.0,7.0220769]
[1721691624034,1.21068182,3452.5,3451.7,9.8085]
[1721691624035,1.21068182,3452.3,3451.7,9.8085]
[1721691624435,1.21068182,3452.2,3451.7,9.8085]
[1721691624655,1.21068182,3452.3,3451.7,9.8085]
[1721691625163,1.21068182,3452.3,3452.0,2.89685]
[1721691625345,1.21068182,3452.3,3452.1,2.89677]
[1721691625547,1.21068182,3452.4,3452.1,2.89677]
[1721691625943,1.21068182,3452.3,3451.9,7.359389]
[1721691626269,1.21068182,3452.3,3451.9,4.462449]
[1721691626679,1.21068182,3452.3,3451.9,7.359329]
[1721691626986,1.21068182,3452.3,3451.9,7.359349]
[1721691627348,1.21068182,3452.3,3451.9,1.565579]
[1721691627662,1.21068182,3452.2,3451.7,12.70561]
[1721691627872,1.21068182,3452.2,3451.3,22.53745]
[1721691628182,1.21068182,3451.9,3451.3,22.53745]
[1721691628353,1.21068182,3451.8,3451.3,22.53745]
[1721691629382,1.21068182,3451.8,3451.4,2.89731]
[1721691629565,1.21068182,3451.8,3451.4,5.81467562]
[1721691629772,1.21068182,3451.7,3451.4,2.91736562]
[1721691629988,1.21068182,3451.7,3451.3,19.64]
[1721691630281,1.21068182,3451.8,3451.4,2.89732]
[1721691630845,1.21068182,3451.8,3451.5,2.89727]
[1721691631087,1.21068182,3451.8,3451.7,2.89712]
[1721691631269,1.21068182,3452.1,3451.9,2.89695]
[1721691631472,1.21068182,3452.0,3451.9,2.89695]
[1721691631783,1.21068182,3452.1,3451.9,2.89695]
[1721691631944,1.51340332,3452.2,3452.0,2.89687]
[1721691632150,1.51340332,3452.2,3452.0,2.89684]
[1721691632452,1.51340332,3452.2,3451.8,2.3197]
[1721691632453,1.51371932,3452.2,3451.8,2.3197]
[1721691632649,1.9494,3452.9,3451.8,2.3197]
[1721691632650,1.21097825,3452.1,3452.0,5.79374]
[1721691632884,1.21097825,3452.4,3452.3,2.89661]
[1721691633193,1.21097825,3452.5,3452.4,5.79306]
[1721691633697,1.21097825,3452.5,3452.4,2.89646]
[1721691633883,1.21097825,3452.5,3452.4,3.475766]
[1721691636764,1.21097825,3452.6,3452.5,2.89645]
[1721691637503,1.51466347,3452.7,3452.5,2.89645]
[1721691638057,1.51466347,3452.7,3452.5,2.89639]
[1721691638297,1.21236726,3452.6,3452.5,2.89639]
[1721691638595,1.51559884,3452.7,3452.6,2.89636]
[1721691639005,1.51560737,3452.7,3452.6,2.89636]
[1721691639970,1.51560737,3452.8,3452.6,2.89636]
[1721691640577,1.81872884,3453.1,3452.7,2.89628]
[1721691641521,1.7,3453.2,3452.7,2.89628]
[1721691641694,1.81871682,3453.0,3452.8,2.89619]
[1721691641897,1.81891009,3453.0,3452.8,2.89619]
[1721691642613,1.7,3453.2,3452.8,2.89619]
[1721691642614,1.81891009,3453.1,3452.8,2.89619]
[1721691643496,1.81891009,3453.1,3452.6,8.10115]
[1721691643696,1.51627551,3452.8,3452.6,8.10115]
[1721691643920,1.51627551,3452.8,3452.7,2.89628]
[1721691644507,1.7,3453.2,3452.7,2.89628]
[1721691644699,1.51649943,3452.8,3452.7,2.89628]
[1721691645425,1.5164779,3452.8,3452.7,2.89628]
[1721691645588,1.81979932,3453.0,3452.6,5.20486]
[1721691645789,1.81979932,3453.0,3452.7,2.89627]
[1721691646330,1.81979932,3453.0,3452.8,2.89618]
[1721691646918,1.81979932,3453.0,3452.7,5.7925]
[1721691647102,1.81979932,3453.0,3452.8,2.89619]
[1721691647627,1.7,3453.2,3452.8,2.89619]
[1721691647953,1.82049986,3453.0,3452.8,2.89619]
[1721691648605,1.82049986,3453.0,3452.7,2.89623]
[1721691649626,1.82049986,3452.9,3452.5,2.89637]
[1721691649840,1.51725944,3452.6,3452.5,2.89637]
[1721691651062,1.51741107,3452.6,3452.5,2.89637]
[1721691651278,1.51739678,3452.6,3452.5,2.89637]
[1721691653053,1.51739678,3452.6,3452.5,2.99637]
[1721691653244,1.51739678,3452.6,3452.5,7.464439]
[1721691653542,1.51739678,3452.6,3452.5,4.567989]
[1721691653848,1.7,3453.2,3452.6,2.89635]
[1721691654046,1.82099108,3453.0,3452.7,2.89627]
[1721691654616,1.82099108,3453.0,3452.6,2.89632]
[1721691654818,1.51785724,3452.7,3452.6,8.7285739]
[1721691656822,1.7,3453.2,3452.8,2.89613]
[1721691657022,1.82149772,3453.0,3452.8,5.79226]
[1721691657241,1.82149772,3453.0,3452.9,2.89611]
[1721691658522,1.82149772,3453.0,3452.7,2.8962]
[1721691658722,1.82149772,3453.0,3452.7,0.63297346]
[1721691658920,1.82149772,3453.0,3452.6,5.37542]
[1721691659116,1.82149772,3453.0,3452.7,2.89626]
[1721691659340,1.82149772,3453.0,3452.6,2.4791]
[1721691659341,1.82149772,3453.0,3452.8,2.89619]
[1721691660048,1.8208417,3453.0,3452.6,5.37539]
[1721691660250,1.51736992,3452.7,3452.6,6.306669]
[1721691660458,1.8208417,3453.0,3452.6,2.4791]
[1721691660863,1.8208417,3452.9,3452.6,2.4791]
[1721691661229,1.8208417,3452.9,3452.6,5.37546]
[1721691661445,1.8208417,3452.9,3452.6,2.4791]
[1721691661736,1.8208417,3452.9,3452.5,0.1]
[1721691662047,1.8208417,3452.7,3452.5,0.1]
[1721691662252,1.7,3452.8,3452.5,0.1]
[1721691662440,1.82015551,3452.6,3452.5,0.1]
[1721691662644,1.7,3452.8,3452.5,0.1]
[1721691662970,1.82029356,3452.7,3452.5,0.1]
[1721691663343,1.82029356,3452.6,3452.5,0.1]
[1721691664439,1.82029356,3452.7,3452.5,5.43175]
[1721691664652,1.82029356,3452.8,3452.6,3.729186]
[1721691665039,1.82029356,3452.9,3452.6,3.729186]
[1721691665272,1.7,3453.3,3452.6,3.729186]
[1721691665454,1.7,3453.3,3452.7,2.89622]
[1721691665661,1.82051728,3452.9,3452.7,2.89622]
[1721691666165,1.82051728,3452.9,3452.8,2.8962]
[1721691666367,1.82051728,3452.9,3452.6,2.89636]
[1721691666573,1.82051728,3452.9,3452.7,2.89623]
[1721691666764,1.7,3453.3,3452.7,2.89623]
[1721691666765,1.82051728,3453.0,3452.7,2.89623]
[1721691667584,1.82051728,3452.9,3452.7,2.89623]
[1721691667736,1.82051728,3452.9,3452.5,0.1]
[1721691667947,1.82051728,3452.8,3452.5,0.1]
[1721691668258,3.06510009,3452.8,3452.5,0.1]
[1721691668577,1.9494,3452.7,3452.5,0.1]
[1721691670098,0.941,3452.6,3452.5,0.1]
[1721691670302,2.12379473,3452.6,3452.5,0.1]
[1721691670599,1.14643397,3452.6,3452.5,0.1]
[1721691670776,3.27016667,3452.6,3452.5,0.1]
[1721691671103,3.27017229,3452.6,3452.5,0.1]
[1721691671248,1.14643397,3452.6,3452.5,0.1]
[1721691671449,3.2702018,3452.6,3452.5,0.1]
[1721691672273,1.14643397,3452.6,3452.5,0.1]
[1721691672483,3.2702018,3452.6,3452.5,0.1]
[1721691672681,1.14643397,3452.6,3452.5,0.1]
[1721691673703,3.26955996,3452.6,3452.5,0.1]
[1721691673886,1.14643397,3452.6,3452.5,0.1]
[1721691674207,3.26955996,3452.6,3452.5,0.1]
[1721691674407,3.26986828,3452.6,3452.5,0.1]
[1721691674722,1.14643397,3452.6,3452.5,0.1]
[1721691675023,3.26985456,3452.6,3452.5,0.1]
[1721691675294,1.14643397,3452.6,3452.5,0.1]
[1721691675513,3.26985456,3452.6,3452.5,0.1]
[1721691675671,1.14643397,3452.6,3452.5,0.1]
[1721691675872,3.26985456,3452.6,3452.5,0.1]
[1721691676067,1.14643397,3452.6,3452.5,0.1]
[1721691676812,3.26985456,3452.6,3452.5,0.1]
[1721691677014,1.14643397,3452.6,3452.5,0.1]
[1721691677162,3.26985456,3452.6,3452.5,0.1]
[1721691677367,3.27048163,3452.6,3452.5,0.1]
[1721691678176,1.14643397,3452.6,3452.5,0.1]
[1721691678479,3.27048163,3452.6,3452.5,0.1]
[1721691679707,1.14643397,3452.6,3452.5,0.1]
[1721691680076,3.27048163,3452.6,3452.5,0.1]
[1721691680473,3.26987991,3452.6,3452.5,0.1]
[1721691681088,1.14643397,3452.6,3452.5,0.1]
[1721691681307,3.26987991,3452.6,3452.5,0.1]
[1721691681606,1.14643397,3452.6,3452.5,0.1]
[1721691682498,0.30328586,3453.1,3452.5,0.1]
[1721691682689,1.7,3452.9,3452.5,2.402]
[1721691685086,0.30328586,3453.1,3452.5,2.402]
[1721691685087,1.82007625,3452.7,3452.5,2.402]
[1721691685323,1.82007625,3452.9,3452.6,2.89636]
[1721691685489,1.82007625,3452.9,3452.7,2.89626]
[1721691685921,0.30328586,3453.1,3452.7,2.89626]
[1721691686109,1.81983119,3452.9,3452.7,2.89626]
[1721691686789,1.81983119,3452.9,3452.5,2.6422]
[1721691687131,1.81983119,3452.9,3452.5,5.53865]
[1721691687132,1.5166953,3452.6,3452.5,5.53865]
[1721691689321,1.82003466,3452.9,3452.7,2.89627]
[1721691689625,1.82006349,3452.9,3452.7,2.89627]
[1721691692316,1.81983099,3452.9,3452.7,2.89627]
[1721691692644,1.8198339,3453.0,3452.7,3.739761]
[1721691693133,0.30328586,3453.1,3452.8,2.8962]
[1721691693134,1.8198339,3452.9,3452.8,2.8962]
[1721691694037,1.8198339,3453.1,3452.8,0.941]
[1721691694339,1.8198339,3453.3,3453.1,2.492]
[1721691694840,1.8198339,3453.2,3453.1,2.492]
[1721691695537,0.941,3453.3,3452.8,2.2938]
[1721691695738,1.51651997,3452.9,3452.8,2.2938]
[1721691695914,1.81982397,3453.1,3452.8,2.2938]
[1721691696115,1.81982397,3453.2,3452.8,5.18999]
[1721691696321,1.51648119,3452.9,3452.8,5.18999]
[1721691696521,1.21314345,3452.9,3452.8,6.032632]
[1721691696740,0.941,3453.3,3452.9,2.89611]
[1721691696741,1.51648119,3453.0,3452.9,2.89611]
[1721691696947,1.51648119,3453.0,3452.8,6.032632]
[1721691697111,1.21316113,3452.9,3452.8,6.032632]
[1721691697443,1.51648119,3453.0,3452.9,2.89611]
[1721691697616,1.51648119,3453.0,3452.8,3.136442]
[1721691697823,1.21307302,3452.9,3452.8,5.19]
[1721691698233,1.21307302,3452.9,3452.8,2.2938]
[1721691698439,1.51648119,3453.0,3452.5,0.3402]
[1721691698440,1.51648119,3453.0,3452.5,2.514]
[1721691698647,0.941,3453.1,3452.5,2.514]
[1721691698842,1.21293184,3452.6,3452.5,5.41045]
[1721691699149,1.21293184,3452.6,3452.5,8.3069]
[1721691699304,1.21293184,3452.7,3452.6,2.89636]
[1721691700317,1.21293184,3452.7,3452.6,5.79272]
[1721691700510,1.21293184,3452.7,3452.6,2.89636]
[1721691701853,1.51608188,3452.7,3452.5,2.514]
[1721691702059,1.51602007,3452.6,3452.5,0.1]
[1721691702656,1.51602827,3452.6,3452.5,0.1]
[1721691702828,2.93022409,3452.9,3452.5,0.1]
[1721691703582,1.98922409,3452.9,3452.5,0.1]
[1721691703780,1.81922409,3452.8,3452.5,0.1]
[1721691703940,1.81922409,3452.9,3452.5,2.5611]
[1721691704125,1.81922409,3452.8,3452.5,2.5611]
[1721691704324,1.81922409,3452.8,3452.5,0.1]
[1721691704768,1.81957174,3452.8,3452.5,0.1]
[1721691705068,2.47791228,3452.8,3452.5,0.1]
[1721691706464,1.51640725,3452.6,3452.5,5.25495]
[1721691706630,1.51640725,3452.6,3452.5,0.1]
[1721691706994,1.7,3452.6,3452.5,0.1]
[1721691708470,3.51963343,3452.6,3452.5,0.1]
[1721691709336,1.7,3452.6,3452.5,2.4728]
[1721691709676,1.81963343,3452.8,3452.5,2.4728]
[1721691710233,1.81963343,3452.6,3452.5,0.1]
[1721691710635,1.81960993,3452.7,3452.5,0.1]
[1721691711146,6.06387825,3453.0,3452.5,0.1]
[1721691711147,1.81957195,3452.6,3452.5,0.1]
[1721691711866,1.81957195,3452.7,3452.5,0.1]
[1721691713672,1.81967821,3452.7,3452.5,0.1]
[1721691715366,1.81967821,3452.7,3452.6,2.4732]
[1721691715676,1.81967821,3452.9,3452.6,2.4732]
[1721691716746,1.819941,3452.9,3452.6,2.4732]
[1721691717070,1.819941,3452.9,3452.7,2.89626]
[1721691717269,1.819941,3453.0,3452.9,2.3315]
[1721691717470,1.7,3453.1,3452.9,2.3315]
[1721691717471,1.819941,3453.1,3452.9,5.22761]
[1721691717673,1.819941,3453.2,3452.9,5.22761]
[1721691718176,1.819941,3453.2,3452.9,2.3315]
[1721691718877,1.819941,3453.1,3452.9,2.3315]
[1721691719739,1.82031726,3453.1,3452.9,2.3315]
[1721691720578,2.641,3453.0,3452.5,2.3797]
[1721691720880,1.51693752,3452.6,3452.5,5.27612]
[1721691721083,1.51693752,3452.7,3452.5,5.27612]
[1721691721258,1.51693752,3452.6,3452.5,2.3797]
[1721691721971,1.7,3453.0,3452.5,5.27615]
[1721691722187,1.51704155,3452.6,3452.5,2.3797]
[1721691722353,1.7,3453.0,3452.5,2.3797]
[1721691722683,1.51711355,3452.6,3452.5,2.3797]
[1721691724451,1.82053626,3452.9,3452.5,2.3797]
[1721691724686,1.51804461,3452.6,3452.5,2.3797]
[1721691725287,1.82162362,3452.8,3452.5,2.3797]
[1721691725656,1.82162362,3452.9,3452.5,2.3797]
[1721691726873,1.82162362,3452.8,3452.5,2.3797]
[1721691728209,1.82140233,3452.8,3452.5,2.3797]
[1721691730875,1.82140233,3452.7,3452.5,2.3797]
[1721691731418,1.82018291,3452.7,3452.5,2.3797]
[1721691732006,1.82018291,3452.8,3452.5,2.3797]
[1721691732313,1.82018291,3452.7,3452.5,2.3797]
[1721691732490,1.82018291,3452.8,3452.5,2.3797]
[1721691732878,1.82018291,3452.7,3452.5,2.3797]
[1721691733076,1.82018291,3452.8,3452.5,2.3797]
[1721691733486,1.82018291,3452.7,3452.5,2.3797]
[1721691733710,1.82018291,3452.8,3452.5,2.3797]
[1721691734306,1.82022825,3452.8,3452.5,2.3797]
[1721691734612,1.82022825,3452.8,3452.5,5.27609]
[1721691734913,1.82040037,3452.8,3452.5,5.27609]
[1721691735417,1.82040037,3452.8,3452.7,2.89628]
[1721691735617,1.82040037,3453.0,3452.8,2.89619]
[1721691735978,1.82040037,3453.1,3452.8,2.89619]
[1721691736832,1.82040037,3453.1,3452.7,5.28375]
[1721691737140,1.82040037,3453.0,3452.7,5.28378]
[1721691737304,2.641,3453.5,3452.7,2.3875]
[1721691737489,1.82088105,3453.1,3452.7,2.3875]
[1721691737817,1.82088105,3453.1,3452.8,2.89613]
[1721691738187,1.82088105,3453.0,3452.9,2.89611]
[1721691738695,2.641,3453.5,3452.9,2.89611]
[1721691738696,1.82088105,3453.1,3452.9,2.89611]
[1721691740440,1.82048375,3453.1,3452.9,2.89611]
[1721691741790,2.12389771,3453.4,3452.9,2.89611]
[1721691741791,1.82048375,3453.0,3452.9,2.89611]
[1721691742225,1.82048375,3453.1,3452.9,2.89611]
[1721691743456,2.641,3453.5,3452.9,2.89611]
[1721691743778,1.82034382,3453.1,3452.9,2.89611]
[1721691744107,1.82034382,3453.1,3452.9,5.79216]
[1721691744425,1.82034382,3453.1,3453.0,2.89603]
[1721691744611,2.12373445,3453.4,3453.0,2.89603]
[1721691745055,1.7,3453.5,3453.0,2.89603]
[1721691745264,2.12400033,3453.4,3453.1,2.3008]
[1721691746666,2.1240103,3453.4,3453.1,2.3008]
[1721691747121,2.12401368,3453.4,3453.1,2.3008]
[1721691747467,2.12401368,3453.3,3453.1,2.3008]
[1721691747810,2.12401368,3453.4,3453.1,2.3008]
[1721691748818,2.07401368,3453.4,3453.1,2.3008]
[1721691749333,1.7,3453.5,3453.1,2.3008]
[1721691749334,1.82056545,3453.2,3453.1,2.3008]
[1721691749723,1.7,3453.5,3453.1,2.3008]
[1721691750251,1.7,3453.1,3452.6,2.3661]
[1721691750456,1.82039096,3452.9,3452.6,2.3661]
[1721691750660,0.941,3453.0,3452.6,2.3661]